[Event "Live Chess"]
[Site "Chess.com"]
[Date "2024.06.01"]
[Round "-"]
[White "WelshTiger"]
[Black "nitrofish07"]
[Result "1-0"]
[WhiteElo "2536"]
[BlackElo "2116"]
[TimeControl "300"]
[EndTime "10:58:05 PDT"]
[Termination "WelshTiger won on time"]

1. e4 {[%clk 0:04:49.2]} 1... c5 {[%clk 0:04:58.2]} 2. Nf3 {[%clk 0:04:46.7]}
2... d6 {[%clk 0:04:57]} 3. d4 {[%clk 0:04:45.7]} 3... cxd4 {[%clk 0:04:56.9]}
4. Nxd4 {[%clk 0:04:45.1]} 4... Nf6 {[%clk 0:04:56.7]} 5. Nc3 {[%clk 0:04:44]}
5... a6 {[%clk 0:04:56.5]} 6. h4 {[%clk 0:04:39.1]} 6... e5 {[%clk 0:04:36.3]}
7. Nb3 {[%clk 0:04:37.9]} 7... Be7 {[%clk 0:04:36.2]} 8. Bg5 {[%clk 0:04:36.1]}
8... Be6 {[%clk 0:04:34]} 9. Bxf6 {[%clk 0:04:34.5]} 9... Bxf6 {[%clk
0:04:31.4]} 10. g3 {[%clk 0:04:33.7]} 10... Nc6 {[%clk 0:04:20.8]} 11. Bh3
{[%clk 0:04:32]} 11... Qd7 {[%clk 0:04:04]} 12. Bxe6 {[%clk 0:04:29.9]} 12...
fxe6 {[%clk 0:04:03.9]} 13. Qe2 {[%clk 0:04:11.8]} 13... O-O {[%clk 0:04:00.8]}
14. O-O {[%clk 0:04:08.7]} 14... b5 {[%clk 0:03:52.6]} 15. a3 {[%clk 0:04:05.2]}
15... Rac8 {[%clk 0:03:48.5]} 16. Rad1 {[%clk 0:04:03.3]} 16... Nd4 {[%clk
0:03:21.2]} 17. Nxd4 {[%clk 0:03:59.9]} 17... exd4 {[%clk 0:03:21.1]} 18. Nb1
{[%clk 0:03:57.3]} 18... a5 {[%clk 0:03:18.1]} 19. Qd3 {[%clk 0:03:46.7]} 19...
Qc6 {[%clk 0:03:10.5]} 20. Rc1 {[%clk 0:03:32.1]} 20... d5 {[%clk 0:02:46.6]}
21. exd5 {[%clk 0:03:30]} 21... Qxd5 {[%clk 0:02:46.5]} 22. Nd2 {[%clk
0:03:27.8]} 22... e5 {[%clk 0:02:40.1]} 23. Ne4 {[%clk 0:03:26.8]} 23... Qc4
{[%clk 0:02:28.3]} 24. Rfe1 {[%clk 0:03:20.3]} 24... Rfd8 {[%clk 0:02:19.1]} 25.
Qf3 {[%clk 0:03:11.3]} 25... Qf7 {[%clk 0:02:14.5]} 26. Qd3 {[%clk 0:03:07.5]}
26... Qc4 {[%clk 0:02:11.9]} 27. Qf3 {[%clk 0:02:59.4]} 27... Qf7 {[%clk
0:02:10.8]} 28. Qf5 {[%clk 0:02:58.2]} 28... Rc6 {[%clk 0:01:35.3]} 29. c3
{[%clk 0:02:56.8]} 29... d3 {[%clk 0:01:28.1]} 30. Rcd1 {[%clk 0:02:55.4]} 30...
Qd7 {[%clk 0:01:19.7]} 31. Qxd7 {[%clk 0:02:45.8]} 31... Rxd7 {[%clk 0:01:18.9]}
32. Re3 {[%clk 0:02:44.1]} 32... Rc4 {[%clk 0:01:04.1]} 33. f3 {[%clk
0:02:41.2]} 33... b4 {[%clk 0:00:58.2]} 34. cxb4 {[%clk 0:02:31.6]} 34... axb4
{[%clk 0:00:56.3]} 35. Rdxd3 {[%clk 0:02:30.4]} 35... Rxd3 {[%clk 0:00:51.7]}
36. Rxd3 {[%clk 0:02:29.5]} 36... Rc1+ {[%clk 0:00:42.5]} 37. Kg2 {[%clk
0:02:28.4]} 37... bxa3 {[%clk 0:00:38.1]} 38. bxa3 {[%clk 0:02:26.6]} 38... Ra1
{[%clk 0:00:35.2]} 39. Kh3 {[%clk 0:02:19]} 39... Kf7 {[%clk 0:00:30.8]} 40. Kg4
{[%clk 0:02:17.8]} 40... Be7 {[%clk 0:00:17.1]} 41. Kf5 {[%clk 0:02:13.1]} 41...
Rxa3 {[%clk 0:00:14.8]} 42. Rxa3 {[%clk 0:02:11]} 42... Bxa3 {[%clk 0:00:14.7]}
43. Kxe5 {[%clk 0:02:09.8]} 43... Bc1 {[%clk 0:00:14.3]} 44. Ng5+ {[%clk
0:01:57.7]} 44... Kg6 {[%clk 0:00:13]} 45. Ne6 {[%clk 0:01:56.1]} 45... Bb2+
{[%clk 0:00:11.4]} 46. Ke4 {[%clk 0:01:55.5]} 46... Ba3 {[%clk 0:00:10.2]} 47.
Nf4+ {[%clk 0:01:54.6]} 47... Kf6 {[%clk 0:00:09.4]} 48. Nd5+ {[%clk 0:01:53.5]}
48... Ke6 {[%clk 0:00:06.3]} 49. Ne3 {[%clk 0:01:47.4]} 49... Bd6 {[%clk
0:00:04.8]} 50. Nf5 {[%clk 0:01:46.1]} 50... Bf8 {[%clk 0:00:03.4]} 51. g4
{[%clk 0:01:43.4]} 51... g6 {[%clk 0:00:03]} 52. Nd4+ {[%clk 0:01:42.2]} 52...
Kf7 {[%clk 0:00:01.8]} 53. Kd5 {[%clk 0:01:39.8]} 53... Be7 {[%clk 0:00:01.7]}
54. h5 {[%clk 0:01:33.7]} 54... gxh5 {[%clk 0:00:01.6]} 55. gxh5 {[%clk
0:01:32.2]} 55... Bf6 {[%clk 0:00:01.3]} 56. Nf5 {[%clk 0:01:30.4]} 56... Be7
{[%clk 0:00:01]} 57. Nxe7 {[%clk 0:01:29]} 57... Kxe7 {[%clk 0:00:00.9]} 58. Ke5
{[%clk 0:01:28.6]} 58... Kf7 {[%clk 0:00:00.6]} 59. Kf5 {[%clk 0:01:28.1]} 59...
h6 {[%clk 0:00:00.2]} 60. Ke5 {[%clk 0:01:26.1]} 1-0

[Event "Live Chess"]
[Site "Chess.com"]
[Date "2024.06.01"]
[Round "-"]
[White "degringolade64"]
[Black "dhairyapandyauk"]
[Result "1-0"]
[WhiteElo "2056"]
[BlackElo "1732"]
[TimeControl "300"]
[EndTime "10:58:05 PDT"]
[Termination "degringolade64 won by checkmate"]

1. e4 {[%clk 0:04:56.4]} 1... e5 {[%clk 0:04:59.2]} 2. Nf3 {[%clk 0:04:53.5]}
2... Nc6 {[%clk 0:04:58.3]} 3. Bc4 {[%clk 0:04:50.5]} 3... Bc5 {[%clk
0:04:56.2]} 4. b4 {[%clk 0:04:48.6]} 4... Bxb4 {[%clk 0:04:54]} 5. c3 {[%clk
0:04:48.2]} 5... Ba5 {[%clk 0:04:53.6]} 6. d4 {[%clk 0:04:45.5]} 6... exd4
{[%clk 0:04:53.1]} 7. Qb3 {[%clk 0:04:44]} 7... Qe7 {[%clk 0:04:51]} 8. O-O
{[%clk 0:04:40.8]} 8... d6 {[%clk 0:04:46.6]} 9. cxd4 {[%clk 0:04:34]} 9... Nf6
{[%clk 0:04:37.4]} 10. e5 {[%clk 0:04:14.2]} 10... dxe5 {[%clk 0:04:34.3]} 11.
dxe5 {[%clk 0:04:14.1]} 11... Nd7 {[%clk 0:04:28.1]} 12. Bg5 {[%clk 0:03:58.7]}
12... f6 {[%clk 0:04:25.7]} 13. exf6 {[%clk 0:03:57.2]} 13... gxf6 {[%clk
0:04:22.6]} 14. Nc3 {[%clk 0:03:49.3]} 14... Nde5 {[%clk 0:04:04.7]} 15. Nxe5
{[%clk 0:03:32]} 15... Nxe5 {[%clk 0:04:04.2]} 16. Bf4 {[%clk 0:03:28.6]} 16...
Kf8 {[%clk 0:03:56.3]} 17. Rfe1 {[%clk 0:03:15.3]} 17... Kg7 {[%clk 0:03:54.2]}
18. Nd5 {[%clk 0:03:05.3]} 18... Qc5 {[%clk 0:03:40.3]} 19. Rxe5 {[%clk
0:03:02.4]} 19... fxe5 {[%clk 0:03:38.6]} 20. Bxe5+ {[%clk 0:03:01.7]} 20... Kh6
{[%clk 0:03:35.3]} 21. Qg3 {[%clk 0:02:34.8]} 21... Bf5 {[%clk 0:03:06.6]} 22.
Bg7+ {[%clk 0:02:30.4]} 22... Kh5 {[%clk 0:03:05.4]} 23. Nf4# {[%clk 0:02:29.7]}
1-0

[Event "Live Chess"]
[Site "Chess.com"]
[Date "2024.06.01"]
[Round "-"]
[White "TC2304"]
[Black "Queensandpawns"]
[Result "1-0"]
[WhiteElo "2347"]
[BlackElo "2443"]
[TimeControl "300"]
[EndTime "10:58:26 PDT"]
[Termination "TC2304 won by checkmate"]

1. d4 {[%clk 0:04:58.6]} 1... Nc6 {[%clk 0:04:58]} 2. Nf3 {[%clk 0:04:52.5]}
2... d6 {[%clk 0:04:56.8]} 3. c4 {[%clk 0:04:51.1]} 3... Nf6 {[%clk 0:04:56.2]}
4. Nc3 {[%clk 0:04:50.1]} 4... g6 {[%clk 0:04:54.7]} 5. d5 {[%clk 0:04:45.6]}
5... Nb8 {[%clk 0:04:53.4]} 6. e4 {[%clk 0:04:39.1]} 6... Bg7 {[%clk 0:04:52.9]}
7. h3 {[%clk 0:04:36.5]} 7... O-O {[%clk 0:04:51.6]} 8. Bf4 {[%clk 0:04:36]}
8... a5 {[%clk 0:04:49.9]} 9. Be2 {[%clk 0:04:30.1]} 9... c6 {[%clk 0:04:48.7]}
10. O-O {[%clk 0:04:28.5]} 10... Na6 {[%clk 0:04:48]} 11. e5 {[%clk 0:04:23.1]}
11... dxe5 {[%clk 0:04:46.3]} 12. Bxe5 {[%clk 0:04:23]} 12... cxd5 {[%clk
0:04:34.2]} 13. cxd5 {[%clk 0:04:18.5]} 13... Nb4 {[%clk 0:04:31.1]} 14. Bc4
{[%clk 0:04:12.4]} 14... Bf5 {[%clk 0:04:18.5]} 15. Nd4 {[%clk 0:04:04.8]} 15...
Bd7 {[%clk 0:04:11.8]} 16. a3 {[%clk 0:03:53.5]} 16... Na6 {[%clk 0:04:05]} 17.
Qf3 {[%clk 0:03:52.3]} 17... Ne8 {[%clk 0:03:54.5]} 18. Bxg7 {[%clk 0:03:48.8]}
18... Nxg7 {[%clk 0:03:54.4]} 19. Rfe1 {[%clk 0:03:46]} 19... Nc5 {[%clk
0:03:47.8]} 20. Rad1 {[%clk 0:03:42.1]} 20... Qb6 {[%clk 0:02:57.8]} 21. Rxe7
{[%clk 0:03:30.1]} 21... Qxb2 {[%clk 0:02:55.4]} 22. d6 {[%clk 0:03:15.2]} 22...
Be6 {[%clk 0:02:48.7]} 23. Nd5 {[%clk 0:03:02.5]} 23... Rad8 {[%clk 0:02:26.4]}
24. Nf6+ {[%clk 0:02:44.4]} 24... Kh8 {[%clk 0:02:26]} 25. Qf4 {[%clk
0:02:41.6]} 25... g5 {[%clk 0:02:15.6]} 26. Qxg5 {[%clk 0:02:30.8]} 26... Bxc4
{[%clk 0:02:15.2]} 27. Qxc5 {[%clk 0:01:53.9]} 27... Be6 {[%clk 0:02:02]} 28.
Nxh7 {[%clk 0:01:27.5]} 28... Kxh7 {[%clk 0:01:54.6]} 29. Nxe6 {[%clk
0:01:21.8]} 29... fxe6 {[%clk 0:01:42.7]} 30. Rd4 {[%clk 0:01:10.6]} 30... Qxf2+
{[%clk 0:01:35.2]} 31. Kh2 {[%clk 0:01:05.2]} 31... Qf6 {[%clk 0:00:41.2]} 32.
Rg4 {[%clk 0:00:51.7]} 32... Rg8 {[%clk 0:00:25.4]} 33. Qc4 {[%clk 0:00:19.1]}
33... Qe5+ {[%clk 0:00:20]} 34. Kh1 {[%clk 0:00:15.6]} 34... Qa1+ {[%clk
0:00:12.6]} 35. Kh2 {[%clk 0:00:14]} 35... Qe5+ {[%clk 0:00:12]} 36. Rf4 {[%clk
0:00:12.4]} 36... Rxd6 {[%clk 0:00:10.3]} 37. Qc2+ {[%clk 0:00:10.9]} 37... Kh8
{[%clk 0:00:07.6]} 38. g3 {[%clk 0:00:10.4]} 38... Qg5 {[%clk 0:00:05.3]} 39.
Rh4+ {[%clk 0:00:09.6]} 39... Qxh4 {[%clk 0:00:04.8]} 40. gxh4 {[%clk
0:00:09.5]} 40... Rd5 {[%clk 0:00:04.2]} 41. Qg6 {[%clk 0:00:08.8]} 41... Rh5
{[%clk 0:00:04.1]} 42. Rxg7 {[%clk 0:00:07]} 42... Rh7 {[%clk 0:00:04]} 43.
Qxh7# {[%clk 0:00:06]} 1-0

[Event "Live Chess"]
[Site "Chess.com"]
[Date "2024.06.01"]
[Round "-"]
[White "vincents82"]
[Black "Grace6363"]
[Result "1-0"]
[WhiteElo "2155"]
[BlackElo "1142"]
[TimeControl "300"]
[EndTime "10:58:26 PDT"]
[Termination "vincents82 won by resignation"]

1. e4 {[%clk 0:04:55.7]} 1... c5 {[%clk 0:04:58.5]} 2. Nf3 {[%clk 0:04:52.5]}
2... Nc6 {[%clk 0:04:57.3]} 3. d4 {[%clk 0:04:50.1]} 3... cxd4 {[%clk
0:04:56.3]} 4. Nxd4 {[%clk 0:04:49.6]} 4... g6 {[%clk 0:04:55.8]} 5. c4 {[%clk
0:04:47.5]} 5... Bg7 {[%clk 0:04:54.7]} 6. Be3 {[%clk 0:04:46.2]} 6... Nf6
{[%clk 0:04:53.4]} 7. Nc3 {[%clk 0:04:45.1]} 7... O-O {[%clk 0:04:50.8]} 8. f3
{[%clk 0:04:43.9]} 8... a6 {[%clk 0:04:40]} 9. Qd2 {[%clk 0:04:42.6]} 9... d6
{[%clk 0:04:38.5]} 10. Be2 {[%clk 0:04:41.5]} 10... Be6 {[%clk 0:04:35.9]} 11.
b3 {[%clk 0:04:39.6]} 11... Nxd4 {[%clk 0:04:33.3]} 12. Bxd4 {[%clk 0:04:38.4]}
12... Qa5 {[%clk 0:04:29.2]} 13. O-O {[%clk 0:04:35.4]} 13... Nh5 {[%clk
0:04:23.8]} 14. Rfd1 {[%clk 0:04:23.1]} 14... Rac8 {[%clk 0:04:04.4]} 15. Nd5
{[%clk 0:04:19]} 15... Bxd5 {[%clk 0:04:02]} 16. Qxa5 {[%clk 0:04:16.9]} 1-0

[Event "Live Chess"]
[Site "Chess.com"]
[Date "2024.06.01"]
[Round "-"]
[White "Dhaydon19"]
[Black "GEMdzq"]
[Result "1-0"]
[WhiteElo "2677"]
[BlackElo "2320"]
[TimeControl "300"]
[EndTime "10:58:44 PDT"]
[Termination "Dhaydon19 won by resignation"]

1. d4 {[%clk 0:04:55.5]} 1... Nf6 {[%clk 0:04:58.5]} 2. Nf3 {[%clk 0:04:55.1]}
2... e6 {[%clk 0:04:57.3]} 3. g3 {[%clk 0:04:54.8]} 3... c5 {[%clk 0:04:56.7]}
4. Bg2 {[%clk 0:04:54.5]} 4... cxd4 {[%clk 0:04:48.6]} 5. Nxd4 {[%clk
0:04:53.9]} 5... Bb4+ {[%clk 0:04:47.9]} 6. c3 {[%clk 0:04:51.8]} 6... Be7
{[%clk 0:04:46.3]} 7. O-O {[%clk 0:04:51.5]} 7... d5 {[%clk 0:04:44.1]} 8. Nd2
{[%clk 0:04:50.7]} 8... O-O {[%clk 0:04:42.9]} 9. e4 {[%clk 0:04:49.6]} 9... e5
{[%clk 0:04:27]} 10. N4b3 {[%clk 0:04:46]} 10... Nc6 {[%clk 0:04:23.4]} 11. exd5
{[%clk 0:04:44.6]} 11... Nxd5 {[%clk 0:04:23.3]} 12. Re1 {[%clk 0:04:44]} 12...
Bg4 {[%clk 0:04:16]} 13. Qxg4 {[%clk 0:04:42.2]} 13... f5 {[%clk 0:04:08.5]} 14.
Qc4 {[%clk 0:04:39.9]} 1-0

[Event "Live Chess"]
[Site "Chess.com"]
[Date "2024.06.01"]
[Round "-"]
[White "Richardallis"]
[Black "SavagePawn7"]
[Result "1-0"]
[WhiteElo "2006"]
[BlackElo "684"]
[TimeControl "300"]
[EndTime "10:58:45 PDT"]
[Termination "Richardallis won by resignation"]

1. d4 {[%clk 0:04:57.4]} 1... e5 {[%clk 0:04:57]} 2. dxe5 {[%clk 0:04:56.1]}
2... d6 {[%clk 0:04:55.2]} 3. exd6 {[%clk 0:04:54.8]} 3... Bxd6 {[%clk
0:04:53.8]} 4. Nf3 {[%clk 0:04:53.7]} 4... Nc6 {[%clk 0:04:52.2]} 5. Bg5 {[%clk
0:04:52.2]} 5... f6 {[%clk 0:04:48.2]} 6. Bh4 {[%clk 0:04:51.1]} 6... Bg4 {[%clk
0:04:44.5]} 7. Nbd2 {[%clk 0:04:48.9]} 7... Qe7 {[%clk 0:04:36.7]} 8. c3 {[%clk
0:04:47.3]} 8... O-O-O {[%clk 0:04:34.3]} 9. Qa4 {[%clk 0:04:45.9]} 9... Bxf3
{[%clk 0:04:24.6]} 10. Nxf3 {[%clk 0:04:44.7]} 10... Nh6 {[%clk 0:04:15.1]} 11.
e3 {[%clk 0:04:38.5]} 11... Nf5 {[%clk 0:04:13.2]} 12. Be2 {[%clk 0:04:37.5]}
12... Nxh4 {[%clk 0:04:10.8]} 13. Qxh4 {[%clk 0:04:35]} 13... g5 {[%clk
0:03:59.8]} 14. Qa4 {[%clk 0:04:33]} 14... h5 {[%clk 0:03:34.8]} 15. O-O-O
{[%clk 0:04:31.5]} 15... g4 {[%clk 0:03:17.3]} 16. Nd4 {[%clk 0:04:30]} 16...
Qd7 {[%clk 0:03:00.8]} 17. Bb5 {[%clk 0:04:28.1]} 17... a6 {[%clk 0:02:56.9]}
18. Bxc6 {[%clk 0:04:26.5]} 18... bxc6 {[%clk 0:02:55.3]} 19. Qxa6+ {[%clk
0:04:25.7]} 19... Kb8 {[%clk 0:02:52.1]} 20. Nxc6+ {[%clk 0:04:25.3]} 20... Qxc6
{[%clk 0:02:39.8]} 21. Qxc6 {[%clk 0:04:24.4]} 1-0

[Event "Live Chess"]
[Site "Chess.com"]
[Date "2024.06.01"]
[Round "-"]
[White "Kyrylo7770"]
[Black "PaulHumphreys"]
[Result "0-1"]
[WhiteElo "1690"]
[BlackElo "1394"]
[TimeControl "300"]
[EndTime "10:58:52 PDT"]
[Termination "PaulHumphreys won by checkmate"]

1. d4 {[%clk 0:04:59.2]} 1... d5 {[%clk 0:04:57.6]} 2. Nf3 {[%clk 0:04:58.8]}
2... e6 {[%clk 0:04:56.8]} 3. Bg5 {[%clk 0:04:58.5]} 3... Be7 {[%clk 0:04:53.5]}
4. h4 {[%clk 0:04:57.9]} 4... Nf6 {[%clk 0:04:50.4]} 5. e3 {[%clk 0:04:57]} 5...
Nbd7 {[%clk 0:04:49.4]} 6. c4 {[%clk 0:04:56.3]} 6... c6 {[%clk 0:04:46.6]} 7.
cxd5 {[%clk 0:04:54.5]} 7... Nxd5 {[%clk 0:04:43.7]} 8. Bxe7 {[%clk 0:04:53.5]}
8... Nxe7 {[%clk 0:04:41]} 9. Bc4 {[%clk 0:04:51.1]} 9... b5 {[%clk 0:04:36.4]}
10. Bb3 {[%clk 0:04:50.3]} 10... a5 {[%clk 0:04:32.6]} 11. Ng5 {[%clk
0:04:48.1]} 11... h6 {[%clk 0:04:25.7]} 12. Nf3 {[%clk 0:04:43.6]} 12... Bb7
{[%clk 0:04:20.2]} 13. Nc3 {[%clk 0:04:41.3]} 13... O-O {[%clk 0:04:06.6]} 14.
Bc2 {[%clk 0:04:39.9]} 14... Re8 {[%clk 0:04:01.4]} 15. Qd3 {[%clk 0:04:38.8]}
15... Nf8 {[%clk 0:03:59.8]} 16. O-O-O {[%clk 0:04:34.9]} 16... b4 {[%clk
0:03:46.6]} 17. Ne4 {[%clk 0:04:31.6]} 17... a4 {[%clk 0:03:41.1]} 18. g4 {[%clk
0:04:26.6]} 18... b3 {[%clk 0:03:38.6]} 19. axb3 {[%clk 0:04:25.6]} 19... axb3
{[%clk 0:03:36.6]} 20. Bxb3 {[%clk 0:04:24.9]} 20... Nd5 {[%clk 0:03:20.9]} 21.
g5 {[%clk 0:04:10.3]} 21... Ra1+ {[%clk 0:03:18.2]} 22. Kd2 {[%clk 0:04:07.8]}
22... Rxd1+ {[%clk 0:03:09]} 23. Bxd1 {[%clk 0:04:00.8]} 23... Qa5+ {[%clk
0:03:07.4]} 24. Ke2 {[%clk 0:03:59.3]} 24... Ba6 {[%clk 0:03:06.5]} 25. gxh6
{[%clk 0:03:53.6]} 25... Bxd3+ {[%clk 0:03:02.9]} 26. Kxd3 {[%clk 0:03:52.3]}
26... g6 {[%clk 0:02:46.7]} 27. h5 {[%clk 0:03:27.7]} 27... Rb8 {[%clk
0:02:31.5]} 28. hxg6 {[%clk 0:03:22.5]} 28... Nxg6 {[%clk 0:02:29.3]} 29. h7+
{[%clk 0:03:20.6]} 29... Kh8 {[%clk 0:02:27.9]} 30. Nfg5 {[%clk 0:03:16.8]}
30... Rb7 {[%clk 0:02:03.8]} 31. Nc5 {[%clk 0:03:03.9]} 31... Re7 {[%clk
0:01:33.5]} 32. Bh5 {[%clk 0:02:27.9]} 32... Qb5+ {[%clk 0:01:19.1]} 33. Ke4
{[%clk 0:02:25.3]} 33... e5 {[%clk 0:01:11.1]} 34. Bxg6 {[%clk 0:02:07.2]} 34...
exd4+ {[%clk 0:00:59.5]} 35. Kxd4 {[%clk 0:02:04.9]} 35... fxg6 {[%clk
0:00:51.9]} 36. Ra1 {[%clk 0:02:01.1]} 36... Qxb2+ {[%clk 0:00:47.2]} 37. Kc4
{[%clk 0:02:00.6]} 37... Qxa1 {[%clk 0:00:44.9]} 38. e4 {[%clk 0:01:55.5]} 38...
Qc1+ {[%clk 0:00:39.7]} 39. Kd4 {[%clk 0:01:51]} 39... Nf6 {[%clk 0:00:31.9]}
40. e5 {[%clk 0:01:42.8]} 40... Nxh7 {[%clk 0:00:22.7]} 41. Nxh7 {[%clk
0:01:39.9]} 41... Kxh7 {[%clk 0:00:21.8]} 42. Nd3 {[%clk 0:01:35]} 42... Rd7+
{[%clk 0:00:19.6]} 43. Ke4 {[%clk 0:01:34.4]} 43... Qc4+ {[%clk 0:00:16.9]} 44.
Kf3 {[%clk 0:01:32.4]} 44... Qxd3+ {[%clk 0:00:16.8]} 45. Kg2 {[%clk 0:01:31.8]}
45... Qf5 {[%clk 0:00:14.8]} 46. f3 {[%clk 0:01:28.8]} 46... Qg5+ {[%clk
0:00:12.5]} 47. Kf2 {[%clk 0:01:28.2]} 47... Rd3 {[%clk 0:00:11.4]} 48. Ke2
{[%clk 0:01:25.8]} 48... Qd2+ {[%clk 0:00:09.6]} 49. Kf1 {[%clk 0:01:24.5]}
49... Rxf3+ {[%clk 0:00:08.4]} 50. Kg1 {[%clk 0:01:23.9]} 50... Rg3+ {[%clk
0:00:05.6]} 51. Kf1 {[%clk 0:01:21.8]} 51... Rh3 {[%clk 0:00:03.7]} 52. Kg1
{[%clk 0:01:19.1]} 52... Ra3 {[%clk 0:00:02.4]} 53. Kf1 {[%clk 0:01:17.7]} 53...
Ra1# {[%clk 0:00:02.3]} 0-1

[Event "Live Chess"]
[Site "Chess.com"]
[Date "2024.06.01"]
[Round "-"]
[White "WeakOldFinished"]
[Black "StoreySniper"]
[Result "0-1"]
[WhiteElo "1634"]
[BlackElo "2558"]
[TimeControl "300"]
[EndTime "10:58:53 PDT"]
[Termination "StoreySniper won by resignation"]

1. d4 {[%clk 0:04:55.3]} 1... g6 {[%clk 0:04:59.4]} 2. e4 {[%clk 0:04:52.7]}
2... Bg7 {[%clk 0:04:59]} 3. c4 {[%clk 0:04:49.8]} 3... c5 {[%clk 0:04:58.4]} 4.
d5 {[%clk 0:04:47.9]} 4... e5 {[%clk 0:04:57.1]} 5. Nc3 {[%clk 0:04:45.2]} 5...
d6 {[%clk 0:04:56.7]} 6. Be2 {[%clk 0:04:43.6]} 6... Nd7 {[%clk 0:04:55.4]} 7.
h4 {[%clk 0:04:42.1]} 7... h5 {[%clk 0:04:54]} 8. Nf3 {[%clk 0:04:31.4]} 8... a6
{[%clk 0:04:52.4]} 9. a4 {[%clk 0:04:29]} 9... Ngf6 {[%clk 0:04:46.8]} 10. Ng5
{[%clk 0:04:26.6]} 10... Nh7 {[%clk 0:04:45.1]} 11. Nxh7 {[%clk 0:04:22.3]}
11... Rxh7 {[%clk 0:04:44]} 12. Kd2 {[%clk 0:04:20.2]} 12... Bh6+ {[%clk
0:04:40.3]} 13. Kc2 {[%clk 0:04:19.4]} 13... Bxc1 {[%clk 0:04:39.3]} 14. Qxc1
{[%clk 0:04:18.2]} 14... Nf6 {[%clk 0:04:28.6]} 15. g3 {[%clk 0:04:14.1]} 15...
Bd7 {[%clk 0:04:24.8]} 16. Qg5 {[%clk 0:04:08.5]} 16... Kf8 {[%clk 0:04:16.6]}
17. f4 {[%clk 0:04:07.4]} 17... Ng4 {[%clk 0:03:50.2]} 18. Bxg4 {[%clk
0:04:04.1]} 18... Bxg4 {[%clk 0:03:35.9]} 19. Qxd8+ {[%clk 0:04:01.4]} 19...
Rxd8 {[%clk 0:03:34.3]} 20. fxe5 {[%clk 0:04:00.7]} 20... dxe5 {[%clk
0:03:32.7]} 21. Raf1 {[%clk 0:03:59.6]} 21... Ke7 {[%clk 0:03:27.6]} 22. a5
{[%clk 0:03:57.9]} 22... f5 {[%clk 0:03:23.6]} 23. Kd3 {[%clk 0:03:38.4]} 23...
Rf7 {[%clk 0:03:19.4]} 24. Ke3 {[%clk 0:03:34.8]} 24... Rdf8 {[%clk 0:03:16.8]}
25. exf5 {[%clk 0:03:23]} 25... Rxf5 {[%clk 0:02:59.7]} 26. Rxf5 {[%clk
0:03:19.8]} 26... Rxf5 {[%clk 0:02:58.9]} 27. Ne4 {[%clk 0:03:17.3]} 27... Rf3+
{[%clk 0:02:48.3]} 28. Kd2 {[%clk 0:03:14]} 28... Bf5 {[%clk 0:02:29.8]} 29.
Nxc5 {[%clk 0:03:12]} 29... Rxg3 {[%clk 0:02:26]} 30. Re1 {[%clk 0:03:10.1]}
30... Kf6 {[%clk 0:02:14.8]} 31. d6 {[%clk 0:03:01.5]} 31... Rg4 {[%clk
0:02:08.3]} 32. Kc3 {[%clk 0:02:58.3]} 32... Rd4 {[%clk 0:02:00.2]} 33. Nxb7
{[%clk 0:02:57.2]} 33... Rxh4 {[%clk 0:01:57]} 34. c5 {[%clk 0:02:53.4]} 34...
Bd7 {[%clk 0:01:46.8]} 35. Nd8 {[%clk 0:02:48.9]} 35... Bb5 {[%clk 0:01:39.8]}
36. b3 {[%clk 0:02:45.7]} 36... Rh3+ {[%clk 0:01:27.3]} 37. Kb4 {[%clk
0:02:44.5]} 37... Rd3 {[%clk 0:01:25.1]} 38. Rf1+ {[%clk 0:02:39.3]} 38... Kg7
{[%clk 0:01:12]} 39. Rf7+ {[%clk 0:02:37.6]} 39... Kh6 {[%clk 0:01:08]} 40. Re7
{[%clk 0:02:36.7]} 40... Rd4+ {[%clk 0:01:00.5]} 41. Ka3 {[%clk 0:02:35.6]}
41... Rd5 {[%clk 0:00:59.4]} 42. Rxe5 {[%clk 0:02:26.8]} 42... Rxe5 {[%clk
0:00:58.1]} 43. Nf7+ {[%clk 0:02:25.9]} 43... Kg7 {[%clk 0:00:50.1]} 44. Nxe5
{[%clk 0:02:25.8]} 44... Kf6 {[%clk 0:00:49]} 45. d7 {[%clk 0:02:20.3]} 45...
Ke7 {[%clk 0:00:44.1]} 46. Nxg6+ {[%clk 0:02:18.9]} 46... Kxd7 {[%clk
0:00:42.7]} 47. Kb4 {[%clk 0:02:16.7]} 47... Ke8 {[%clk 0:00:30.3]} 48. Kc3
{[%clk 0:02:14.1]} 48... Kf7 {[%clk 0:00:29.2]} 49. Nh4 {[%clk 0:02:13.5]} 49...
Kf6 {[%clk 0:00:28.4]} 50. Kd4 {[%clk 0:02:12.9]} 50... Kg5 {[%clk 0:00:27.9]}
51. Nf3+ {[%clk 0:02:12.1]} 51... Kf4 {[%clk 0:00:26.9]} 52. Nh4 {[%clk
0:02:08.7]} 52... Kg4 {[%clk 0:00:26]} 53. Ng6 {[%clk 0:02:07.7]} 53... Be8
{[%clk 0:00:23.9]} 54. Ne5+ {[%clk 0:02:06]} 54... Kg3 {[%clk 0:00:23]} 55. c6
{[%clk 0:01:27.3]} 55... Bxc6 {[%clk 0:00:21.8]} 56. Nxc6 {[%clk 0:01:27.2]}
56... h4 {[%clk 0:00:21.4]} 57. Ke3 {[%clk 0:01:26.8]} 57... h3 {[%clk
0:00:20.7]} 58. Nd4 {[%clk 0:01:25.8]} 58... h2 {[%clk 0:00:19.8]} 59. Ne2+
{[%clk 0:01:25]} 59... Kg2 {[%clk 0:00:18.3]} 60. Nf4+ {[%clk 0:01:24]} 60...
Kf1 {[%clk 0:00:16.2]} 0-1